bitfinex/quotes_ETHUSD_20240716
["timestamp","ask_amount","ask_price","bid_price","bid_amount"]
[1721143731316,2.8946,3454.7,3453.6,0.579116]
[1721143731516,2.8946,3454.7,3454.0,2.89517]
[1721143731809,5.17121,3454.9,3454.2,2.89502]
[1721143731810,2.2767,3454.9,3454.2,2.89502]
[1721143731971,2.2767,3454.9,3454.4,2.89485]
[1721143732172,2.2767,3454.9,3453.8,2.89534]
[1721143732173,2.89462,3454.7,3453.8,2.89534]
[1721143732486,2.89471,3454.6,3453.8,2.89533]
[1721143732697,2.89471,3454.6,3453.6,2.89546]
[1721143732993,2.89471,3454.6,3453.8,2.89533]
[1721143733500,2.89462,3454.7,3453.9,2.89527]
[1721143733796,5.17115,3454.9,3453.9,3.47433]
[1721143733797,2.89453,3454.8,3453.9,3.47433]
[1721143733960,2.8946,3454.7,3453.9,3.47433]
[1721143734387,2.2767,3454.9,3454.3,2.89492]
[1721143735098,2.89425,3455.2,3454.4,2.89479]
[1721143735283,2.3485,3455.5,3454.4,2.89479]
[1721143735466,2.89434,3455.1,3454.2,2.89498]
[1721143735664,2.89413,3455.3,3454.1,2.89504]
[1721143735996,2.89413,3455.3,3454.4,2.89484]
[1721143735997,2.89432,3455.1,3454.4,2.89484]
[1721143736164,2.89413,3455.3,3454.4,2.89484]
[1721143736365,2.89395,3455.5,3454.6,2.89465]
[1721143736701,2.89411,3455.3,3454.5,2.89472]
[1721143736875,2.89411,3455.3,3454.5,2.89477]
[1721143737196,2.89441,3455.0,3454.2,2.89502]
[1721143737398,5.78884,3455.0,3454.0,2.89519]
[1721143737616,6.063,3455.8,3454.4,2.89485]
[1721143737617,2.89421,3455.2,3454.4,2.89485]
[1721143737795,2.89428,3455.1,3454.2,2.89496]
[1721143738002,2.89452,3454.8,3453.8,5.33289]
[1721143738167,2.89452,3454.8,3452.6,1.310557]
[1721143738168,2.3117,3455.0,3453.4,2.89565]
[1721143738372,2.89478,3454.5,3453.4,2.89565]
[1721143738571,2.89478,3454.5,3453.6,2.89544]
[1721143738775,2.89478,3454.5,3453.8,2.89531]
[1721143739212,5.20609,3455.0,3453.7,0.289544]
[1721143739414,5.20609,3455.0,3454.0,2.89517]
[1721143739415,2.89458,3454.8,3454.0,2.89517]
[1721143739705,2.89458,3454.8,3454.1,2.89507]
[1721143740112,2.89427,3455.1,3454.2,2.89501]
[1721143740272,2.89436,3455.0,3454.3,3.184431]
[1721143740596,2.89436,3455.0,3454.4,2.89484]
[1721143740906,2.89424,3455.2,3454.4,2.89484]
[1721143740907,2.89433,3455.1,3454.4,2.89484]
[1721143741511,2.89436,3455.0,3454.2,2.89495]
[1721143741722,2.89436,3455.0,3453.7,0.289544]
[1721143741723,2.89448,3454.9,3454.0,2.89513]
[1721143741896,2.89468,3454.7,3453.7,0.289544]
[1721143742085,2.8939,3455.6,3452.1,8.8]
[1721143742086,5.35513,3454.5,3453.3,2.89576]
[1721143742297,5.35513,3454.5,3453.4,2.89569]
[1721143742298,2.89495,3454.3,3453.4,2.89569]
[1721143742492,2.89495,3454.3,3452.9,2.3118]
[1721143742493,5.4603,3455.0,3452.9,2.3118]
[1721143742786,2.4603,3455.0,3453.2,2.89581]
[1721143742987,2.89441,3455.0,3454.2,2.89501]
[1721143743172,2.89444,3454.9,3454.0,2.89518]
[1721143743390,2.89444,3454.9,3453.8,2.89533]
[1721143743585,2.89444,3454.9,3453.8,2.89535]
[1721143743786,2.89466,3454.7,3453.8,2.89535]
[1721143744026,2.89466,3454.7,3453.9,2.89526]
[1721143744230,2.89466,3454.7,3453.8,2.89535]
[1721143744404,2.89466,3454.7,3453.9,2.89527]
[1721143745231,2.89466,3454.7,3453.7,2.8954]
[1721143745540,2.89466,3454.7,3453.4,2.3929]
[1721143745689,2.89444,3454.9,3454.0,2.89518]
[1721143746216,2.89461,3454.7,3454.0,2.89518]
[1721143746415,2.8943,3455.1,3454.2,2.89501]
[1721143746632,2.4636,3455.6,3454.3,2.34449028]
[1721143746828,2.4636,3455.6,3454.9,2.89439]
[1721143746990,5.35745,3455.6,3454.9,2.89439]
[1721143747192,2.89385,3455.6,3454.9,2.89439]
[1721143747391,2.89385,3455.6,3454.7,2.89453]
[1721143747794,2.89385,3455.6,3454.8,2.89451]
[1721143748497,2.89385,3455.6,3454.2,2.89499]
[1721143748498,0.148592,3456.0,3454.9,2.2866]
[1721143748791,2.474792,3456.0,3454.5,3.0]
[1721143748989,2.474792,3456.0,3454.3,2.2866]
[1721143748990,2.89405,3455.4,3454.6,2.89463]
[1721143749231,2.89391,3455.6,3454.7,2.89458]
[1721143749824,2.89396,3455.5,3454.6,2.89463]
[1721143750027,2.89396,3455.5,3454.7,2.8946]
[1721143750328,2.89396,3455.5,3454.7,3.473523]
[1721143750902,5.368372,3456.0,3455.2,2.89414]
[1721143751100,2.89361,3455.9,3455.2,2.89414]
[1721143751419,2.89361,3455.9,3455.0,5.78863]
[1721143751735,2.89361,3455.9,3455.1,2.89422]
[1721143751923,2.89379,3455.7,3454.8,2.8945]
[1721143752101,2.89379,3455.7,3454.5,2.89473]
[1721143752102,2.89386,3455.6,3454.5,2.89473]
[1721143752300,2.89386,3455.6,3454.5,2.89474]
[1721143752533,2.89396,3455.5,3454.6,2.89467]
[1721143752912,2.89396,3455.5,3454.5,0.518134]
[1721143753236,2.4482,3455.1,3453.9,2.89522]
[1721143753451,2.89462,3454.7,3453.7,2.89541]
[1721143753653,3.0,3455.4,3453.8,0.5791]
[1721143753854,2.89444,3454.9,3453.9,2.89525]
[1721143754058,2.89427,3455.1,3454.3,2.89486]
[1721143754255,2.89427,3455.1,3454.3,2.89489]
[1721143754548,3.0,3455.5,3454.8,2.89446]
[1721143754549,2.89396,3455.5,3454.8,2.89446]
[1721143754752,2.89396,3455.5,3454.6,2.89465]
[1721143754936,2.89396,3455.5,3454.7,2.8946]
[1721143755110,2.89377,3455.7,3454.7,2.8946]
[1721143755111,2.89377,3455.7,3454.9,2.89442]
[1721143755315,2.89385,3455.6,3455.0,0.1]
[1721143756436,2.89377,3455.7,3455.0,0.1]
[1721143756753,2.89394,3455.5,3455.0,0.1]
[1721143756919,5.30567,3455.1,3455.0,0.1]
[1721143757121,8.19994,3455.1,3455.0,0.1]
[1721143757662,14.14721,3455.1,3455.0,0.1]
[1721143757864,17.69721,3455.1,3455.0,0.1]
[1721143758018,18.90086581,3455.1,3455.0,0.1]
[1721143758220,19.20487982,3455.1,3455.0,0.1]
[1721143758460,2.89521,3454.0,3453.3,0.29537087]
[1721143758903,6.349,3454.8,3453.3,3.19114087]
[1721143758904,2.89483,3454.5,3453.3,3.19114087]
[1721143759208,4.10133256,3454.8,3453.9,2.89521]
[1721143759409,4.10133256,3454.8,3454.0,0.289521]
[1721143759410,2.89459,3454.8,3454.0,0.289521]
[1721143759694,2.89461,3454.7,3453.7,2.89536]
[1721143759894,2.89461,3454.7,3453.9,2.8952]
[1721143760202,5.30567,3455.1,3454.3,2.89488]
[1721143760535,5.30567,3455.1,3453.8,2.89536]
[1721143760536,2.89447,3454.9,3453.8,2.89536]
[1721143760793,2.89494,3454.3,3453.4,2.89568]
[1721143760998,2.89494,3454.3,3453.4,3.50437209]
[1721143761423,2.89513,3454.1,3453.2,2.89586]
[1721143761569,2.8952,3454.0,3453.1,2.8959]
[1721143762269,5.33797,3454.1,3453.1,2.8959]
[1721143762781,4.10168256,3454.3,3453.2,2.89579]
[1721143762782,1.20674256,3454.3,3453.2,2.89579]
[1721143762979,4.10170256,3454.3,3453.3,2.89571]
[1721143763191,4.10177256,3454.2,3453.3,2.89571]
[1721143763427,2.89553,3453.6,3452.6,2.89636]
[1721143763578,2.89553,3453.6,3452.8,2.89619]
[1721143764225,4.10217256,3453.8,3452.8,2.89619]
[1721143764435,1.20674256,3453.8,3452.8,2.89619]
[1721143764655,4.10201256,3453.9,3452.9,3.475364]
[1721143764936,2.89542,3453.8,3452.9,3.475364]
[1721143765235,1.20674256,3453.8,3453.0,2.89598]
[1721143765439,1.20674256,3453.7,3453.0,2.89598]
[1721143765725,1.20674256,3453.7,3453.1,3.5330744]
[1721143765953,2.89529,3453.9,3453.1,0.6371344]
[1721143766119,5.89473,3454.6,3452.4,5.4816]
[1721143766120,1.21127982,3453.8,3452.4,5.4816]
[1721143766304,5.11973969,3454.6,3453.0,3.053]
[1721143766305,1.21127982,3454.1,3453.0,3.053]
[1721143766504,1.21127982,3454.3,3453.8,2.89534]
[1721143766706,1.81691973,3454.8,3453.8,2.89534]
[1721143766707,1.21127982,3454.6,3453.9,2.89521]
[1721143766899,1.21127982,3454.6,3454.0,3.474225]
[1721143767205,1.21127982,3454.6,3454.1,2.8951]
[1721143767721,1.21190611,3454.6,3454.0,2.89518]
[1721143768021,1.21190611,3454.6,3453.8,2.89534]
[1721143768190,1.21190611,3454.4,3453.8,2.89534]
[1721143768388,1.21190611,3454.4,3453.5,2.4296]
[1721143768389,1.21190611,3454.4,3454.1,2.2885]
[1721143768612,1.21190611,3455.0,3454.2,0.22885]
[1721143768854,1.21190611,3454.7,3453.7,2.89542]
[1721143769057,1.21190611,3454.7,3453.9,2.89526]
[1721143769058,1.21190611,3454.6,3453.9,2.89526]
[1721143769239,1.21190611,3454.6,3453.8,2.89533]
[1721143769442,2.89438,3455.0,3454.2,2.895]
[1721143769443,1.21190611,3454.5,3454.2,2.895]
[1721143769613,1.2121728,3454.8,3454.2,2.895]
[1721143769818,1.2121728,3454.7,3454.2,2.895]
[1721143770038,1.2121728,3454.8,3454.2,3.1845]
[1721143770252,1.2121728,3454.6,3453.5,2.2885]
[1721143770550,1.2121728,3454.4,3453.7,2.89542]
[1721143770852,1.2121728,3453.8,3453.1,2.89594]
[1721143771022,1.2121728,3453.8,3453.1,0.809754]
[1721143771349,1.2121728,3453.8,3453.5,2.89559]
[1721143771551,1.2121728,3453.9,3453.5,2.89559]
[1721143771955,1.2121728,3453.8,3453.5,2.89559]
[1721143772278,1.2121728,3454.3,3454.0,2.89518]
[1721143772457,1.5158807,3454.5,3454.0,2.89518]
[1721143772458,1.2121728,3454.5,3454.2,2.89496]
[1721143772659,1.2121728,3454.5,3454.1,2.8951]
[1721143772980,1.5158807,3454.6,3454.1,2.8951]
[1721143772981,1.2121728,3454.4,3454.1,2.8951]
[1721143773146,1.2121728,3454.4,3453.9,2.89522]
[1721143773338,1.5158807,3454.6,3453.6,2.8955]
[1721143773339,1.2121728,3454.3,3453.6,2.8955]
[1721143773539,1.2121728,3454.2,3453.8,2.89529]
[1721143773842,1.2121728,3454.3,3453.6,2.89548]
[1721143774036,1.2121728,3454.2,3453.5,2.8956]
[1721143774233,1.2121728,3454.2,3453.6,3.18505]
[1721143774541,1.2121728,3454.2,3453.6,0.28956]
[1721143774946,1.2121728,3454.1,3453.1,5.23602]
[1721143775140,1.21290279,3454.0,3453.1,5.23602]
[1721143775467,1.21290279,3453.9,3453.4,2.89568]
[1721143775668,1.21290279,3453.9,3453.1,2.3401]
[1721143775669,1.21290279,3453.9,3453.3,2.89577]
[1721143775871,4.71422419,3454.4,3453.2,2.89583]
[1721143775872,1.21290279,3453.8,3453.2,2.89583]
[1721143776078,1.51612849,3454.0,3453.0,2.89602]
[1721143776079,1.21290279,3453.6,3453.0,2.89602]
[1721143776240,1.21290279,3453.4,3453.0,2.89602]
[1721143776595,1.21290279,3453.3,3452.6,2.89634]
[1721143776738,1.21290279,3453.1,3452.1,2.4264]
[1721143776938,2.12257989,3453.9,3452.1,2.4264]
[1721143776939,1.21290279,3453.2,3452.7,2.89621]
[1721143777172,1.21290279,3453.3,3452.7,2.89621]
[1721143777475,1.21290279,3453.3,3452.7,2.89627]
[1721143777687,1.21290279,3453.3,3452.9,2.89605]
[1721143777997,1.21290279,3453.2,3452.5,2.89644]
[1721143778141,1.21290279,3453.0,3451.9,2.89688]
[1721143778460,1.21290279,3453.0,3451.4,2.89731]
[1721143778461,1.21290279,3452.7,3452.3,2.89655]
[1721143778667,1.21290279,3452.9,3452.5,2.89644]
[1721143778837,1.21290279,3452.8,3452.5,2.89644]
[1721143779034,1.81954295,3453.3,3452.5,2.89644]
[1721143779035,1.21290279,3453.2,3452.6,0.289644]
[1721143779248,2.12280011,3454.0,3453.0,2.89597]
[1721143779249,1.21290279,3453.5,3453.0,2.89597]
[1721143779460,1.21290279,3453.5,3453.1,2.89592]
[1721143779865,4.71474295,3454.0,3452.9,2.89611]
[1721143779866,1.21290279,3453.4,3452.9,2.89611]
[1721143780070,1.21290279,3453.4,3453.1,2.89589]
[1721143780274,1.51628579,3453.6,3453.1,2.89589]
[1721143780275,1.21290279,3453.5,3453.1,2.89589]
[1721143780578,1.21290279,3453.4,3453.0,2.89597]
[1721143780781,1.51628579,3453.5,3453.1,2.89593]
[1721143780782,1.21290279,3453.5,3453.1,2.89593]
[1721143781150,2.89512,3454.1,3453.2,2.89585]
[1721143781460,1.21220669,3453.7,3453.2,2.89585]
[1721143781656,1.21220669,3453.8,3453.2,2.89585]
[1721143781868,2.89512,3454.1,3453.6,2.89549]
[1721143781869,1.21220669,3453.9,3453.6,2.89549]
[1721143782181,1.21220669,3454.2,3453.4,5.94868]
[1721143782492,1.21220669,3454.6,3454.0,2.89513]
[1721143782645,1.21220669,3454.7,3454.0,2.89513]
[1721143783282,1.21220669,3454.6,3454.0,2.89513]
[1721143784081,1.21220669,3454.6,3454.3,2.89486]
[1721143784293,1.21220669,3454.8,3454.5,2.89471]
[1721143784501,1.21220669,3454.8,3453.5,0.820448]
[1721143784502,1.21220669,3454.8,3454.6,3.473627]
[1721143784775,1.21220669,3454.8,3454.4,2.89484]
[1721143784776,1.21220669,3454.7,3454.2,2.89501]
[1721143784996,1.21220669,3454.7,3454.4,2.89479]
[1721143785150,1.21220669,3454.9,3454.5,2.89475]
[1721143785346,1.21220669,3454.8,3454.5,2.89475]
[1721143785674,2.89409,3455.4,3454.5,3.473704]
[1721143785675,1.21220669,3454.9,3454.5,3.473704]
[1721143785842,1.21220669,3454.9,3454.6,2.89468]
[1721143786046,1.21220669,3455.0,3454.6,2.89468]
[1721143786245,1.21220669,3454.9,3454.6,2.89468]
[1721143786874,1.21220669,3454.9,3454.3,2.89493]
[1721143787050,1.21220669,3454.8,3453.7,2.4374]
[1721143787267,1.21220669,3454.7,3454.2,2.89502]
[1721143787600,1.21220669,3454.8,3454.2,2.89502]
[1721143787914,1.21220669,3454.8,3454.3,2.89491]
[1721143788083,1.21220669,3454.9,3454.6,2.89468]
[1721143788284,1.21220669,3455.1,3454.6,2.89468]
[1721143788528,1.21220669,3455.0,3454.6,2.89468]
[1721143789009,1.21220669,3455.0,3454.7,2.89459]
[1721143789213,1.21220669,3455.0,3454.8,2.89452]
[1721143789435,1.21220669,3455.2,3454.5,2.89471]
[1721143789710,1.51453627,3455.4,3455.1,2.89427]
[1721143789711,1.21220669,3455.4,3455.1,2.89427]
[1721143789914,1.21220669,3455.4,3454.3,3.053]
[1721143789915,1.21220669,3455.4,3455.0,2.89434]
[1721143790220,1.21220669,3455.4,3454.8,2.89451]
[1721143790221,1.21220669,3455.3,3454.8,2.89451]
[1721143790457,1.21220669,3455.2,3454.5,2.89469]
[1721143792274,1.21220669,3455.0,3454.4,2.8948]
[1721143792472,1.21220669,3455.1,3454.5,2.89475]
[1721143792975,1.21220669,3455.1,3455.0,2.89435]
[1721143793175,1.21220669,3455.4,3455.2,2.89417]
[1721143793411,1.21220669,3455.5,3455.2,2.89417]
[1721143793716,1.21056429,3455.5,3455.2,2.89417]
[1721143794092,1.21056429,3455.6,3455.2,0.578852]
[1721143794269,1.35915629,3456.0,3455.1,2.89421]
[1721143794473,1.35915629,3456.0,3455.5,2.89386]
[1721143794673,0.148592,3456.0,3455.5,2.89386]
[1721143794876,0.148592,3456.0,3455.6,2.89381]
[1721143795109,0.148592,3456.0,3455.8,2.89368]
[1721143795425,1.21056429,3455.9,3455.1,2.89421]
[1721143795927,1.21056429,3455.8,3454.9,2.89437]
[1721143796071,0.148592,3456.0,3454.9,2.89437]
[1721143796072,1.21056429,3455.9,3455.6,2.89385]
[1721143796278,1.35915629,3456.0,3455.6,2.89385]
[1721143796576,0.148592,3456.0,3455.6,2.89385]
[1721143797123,1.35915629,3456.0,3455.4,2.89401]
[1721143797415,0.148592,3456.0,3455.1,2.89419]
[1721143797716,1.21056429,3455.9,3455.1,2.89424]
[1721143797892,1.21056429,3455.9,3454.6,2.4546]
[1721143797893,1.21056429,3455.9,3455.2,2.89411]
[1721143798073,1.21056429,3455.8,3455.1,2.89419]
[1721143798277,1.21056429,3455.9,3455.2,2.89418]
[1721143799007,1.21056429,3455.9,3455.0,2.89427]
[1721143799195,1.21056429,3455.7,3454.9,2.8944]
[1721143799515,1.21056429,3455.7,3454.7,2.8946]
[1721143799516,1.21056429,3455.6,3454.8,2.89451]
[1721143799713,3.9989713,3455.7,3454.1,2.4195]
[1721143799714,1.21056429,3455.5,3454.3,2.89487]
[1721143800041,1.21056429,3455.1,3454.2,2.89496]
[1721143800177,1.21056429,3455.0,3453.9,0.56585748]
[1721143800503,1.21056429,3454.8,3454.0,2.89515]
[1721143800676,1.21056429,3454.8,3453.9,0.56585748]
[1721143801187,1.21056429,3454.8,3453.8,0.3257848]
[1721143801391,2.2726,3454.8,3453.8,2.8953]
[1721143801709,1.20948004,3454.6,3453.8,2.89535]
[1721143801909,1.20948004,3454.6,3454.0,2.89517]
[1721143802111,1.20948004,3454.6,3453.6,2.8955]
[1721143802301,1.20948004,3454.5,3453.5,2.89555]
[1721143802502,1.20948004,3454.5,3453.9,2.8952]
[1721143802822,1.20948004,3454.7,3454.0,2.89518]
[1721143802995,1.20948004,3454.8,3454.4,2.89479]
[1721143803191,1.81422006,3455.3,3454.5,2.89476]
[1721143803192,1.20948004,3454.9,3454.5,2.89476]
[1721143803393,1.20948004,3455.3,3454.8,2.89452]
[1721143803727,1.20948004,3455.2,3454.5,3.473708]
[1721143803895,1.20948004,3455.2,3454.5,2.89474]
[1721143804090,1.20948004,3455.2,3454.6,2.89468]
[1721143804305,2.89385,3455.6,3454.1,5.5472]
[1721143804477,2.89385,3455.6,3454.6,2.89465]
[1721143804478,1.20947868,3455.3,3454.6,2.89465]
[1721143804918,1.20946634,3455.3,3454.5,2.89469]
[1721143805122,1.51183293,3455.5,3454.4,2.89485]
[1721143805307,2.89414,3455.3,3454.2,2.89501]
[1721143805481,2.89414,3455.3,3454.3,2.89493]
[1721143805482,4.40597293,3455.3,3454.3,2.89493]
[1721143805684,4.40597293,3455.3,3454.1,2.89504]
[1721143805919,1.51183293,3455.2,3454.1,2.89504]
[1721143806224,1.51183293,3455.2,3454.2,0.57902]
[1721143806517,1.51183293,3455.3,3454.7,2.8946]
[1721143806704,1.51183293,3455.4,3454.8,2.89446]
[1721143807019,1.51183293,3455.5,3454.9,2.9522921]
[1721143807185,3.042112,3456.0,3455.1,2.89419]
[1721143807516,1.51168666,3455.9,3455.2,3.183589]
[1721143807683,1.51168666,3455.9,3455.3,0.0578761]
[1721143808079,1.51168666,3455.9,3455.4,2.89401]
[1721143808307,0.148592,3456.0,3455.4,2.89401]
[1721143808590,0.148592,3456.0,3455.7,2.89375]
[1721143808782,0.148592,3456.0,3455.2,0.289419]
[1721143808987,0.148592,3456.0,3455.3,0.3183619]
[1721143809633,2.89363,3455.9,3455.2,0.289419]
[1721143809942,2.89383,3455.7,3454.8,2.89451]
[1721143810094,2.89383,3455.7,3454.6,2.89466]
[1721143810295,2.3707,3455.9,3454.5,2.89476]
[1721143810296,2.89393,3455.5,3454.5,2.89476]
[1721143810501,4.40548398,3455.6,3454.6,2.89467]
[1721143810827,1.51161398,3455.7,3454.7,0.578943]
[1721143810984,1.51161398,3455.7,3454.8,2.89447]
[1721143810985,2.89387,3455.6,3454.8,2.89447]
[1721143811190,1.51161398,3455.8,3455.0,2.89427]
[1721143811424,1.51161398,3455.7,3454.8,2.8945]
[1721143811718,0.148592,3456.0,3454.8,2.8945]
[1721143811719,0.148592,3456.0,3455.4,2.894]
[1721143811921,0.148592,3456.0,3455.7,2.89376]
[1721143812132,0.148592,3456.0,3455.8,3.53023892]
[1721143812335,0.148592,3456.0,3455.9,2.8936]
[1721143813220,0.148592,3456.0,3455.9,5.7872]
[1721143814019,0.148592,3456.0,3455.9,5.84506031]
[1721143814324,0.148592,3456.0,3455.9,5.7872]
[1721143814519,0.148592,3456.0,3455.9,6.4237954]
[1721143815220,0.148592,3456.0,3455.9,3.5301954]
[1721143815520,0.148592,3456.0,3455.9,6.4237954]
[1721143815723,0.148592,3456.0,3455.9,9.4767954]
[1721143815924,0.148592,3456.0,3455.9,12.3703954]
[1721143816442,2.89202,3457.8,3455.9,12.3703954]
[1721143816443,1.20756171,3457.7,3456.9,2.89275]
[1721143816592,4.09957171,3457.8,3456.9,2.89275]
[1721143816989,2.89201,3457.8,3456.9,2.89275]
[1721143817527,2.8921,3457.7,3456.9,2.89275]
[1721143818038,1.20756171,3458.0,3456.8,2.89278]
[1721143818245,4.20756171,3458.0,3456.9,2.89275]
[1721143818448,2.8921,3457.7,3456.9,2.89275]
[1721143818738,2.89193,3457.9,3456.9,2.89274]
[1721143819039,2.89193,3457.9,3456.8,3.182048]
[1721143819242,2.89214,3457.7,3456.8,3.182048]
[1721143819428,2.89214,3457.7,3456.9,3.5002638]
[1721143819628,2.89214,3457.7,3456.9,0.6075038]
[1721143819837,2.8922,3457.6,3456.9,0.6075038]
[1721143820447,2.8922,3457.6,3456.7,2.8929]
[1721143820652,2.89237,3457.4,3456.5,2.89308]
[1721143820834,2.3341,3457.2,3456.0,1.48612954]
[1721143821167,2.89307,3456.6,3455.5,2.89388]
[1721143821348,2.89307,3456.6,3455.8,2.89368]
[1721143821545,2.89285,3456.8,3455.8,2.89368]
[1721143821746,2.89285,3456.8,3455.7,2.8937]
[1721143822045,2.89285,3456.8,3456.0,2.89344]
[1721143822212,2.3341,3457.2,3454.4,3.296]
[1721143822213,5.22665,3457.2,3454.4,3.296]
[1721143822411,5.22665,3457.2,3455.3,2.89404]
[1721143822412,2.89323,3456.4,3455.3,2.89404]
[1721143822612,2.89333,3456.3,3455.3,2.89404]
[1721143822846,2.89336,3456.2,3455.2,2.89418]
[1721143823047,2.89336,3456.2,3455.3,0.594718]
[1721143823835,2.89336,3456.2,3455.3,3.488808]
[1721143824345,2.4089,3456.3,3455.4,2.894]
[1721143824551,2.89323,3456.4,3455.4,2.894]
[1721143824716,2.89304,3456.6,3455.3,0.594718]
[1721143824936,2.89294,3456.7,3455.9,2.89358]
[1721143825556,2.89294,3456.7,3455.6,2.89381]
[1721143825847,2.89294,3456.7,3455.7,2.89376]
[1721143826054,2.89294,3456.7,3455.8,2.89368]
[1721143826237,2.89268,3457.0,3456.1,2.89342]
[1721143826443,2.89268,3457.0,3456.2,3.182682]
[1721143826859,4.20762694,3457.4,3456.3,5.38496]
[1721143826860,4.09999694,3457.4,3456.3,5.38496]
[1721143827059,2.89231,3457.5,3456.6,2.89293]
[1721143827375,2.89227,3457.5,3456.6,2.89293]
[1721143827575,2.8925,3457.3,3456.4,2.89317]
[1721143827760,2.8925,3457.3,3456.5,0.6075852]
[1721143828342,2.89196,3457.9,3456.5,0.6075852]
[1721143828343,1.20762694,3457.6,3456.7,2.89287]
[1721143828545,4.10033727,3457.6,3456.7,2.89287]
[1721143828848,2.89226,3457.5,3456.7,2.89287]
[1721143829049,1.20807727,3457.7,3456.8,2.89284]
[1721143829256,2.89201,3457.8,3456.9,0.289284]
[1721143829461,4.10008727,3457.8,3456.9,0.289284]
[1721143829676,2.89211,3457.7,3456.9,3.182034]
[1721143830085,4.10000727,3457.9,3457.0,0.6074884]
[1721143830239,2.89202,3457.8,3457.0,0.6074884]
[1721143831058,2.8921,3457.7,3457.0,0.6074884]
[1721143831449,3.66437727,3458.0,3456.5,0.6075852]
[1721143831450,2.89222,3457.6,3456.5,0.6075852]
[1721143831651,3.66437727,3458.0,3455.8,2.4409]
[1721143831652,2.89253,3457.2,3456.2,2.89333]
[1721143831852,2.89253,3457.2,3455.8,2.4409]
[1721143831853,2.89263,3457.1,3456.0,2.89351]
[1721143832053,2.3502,3457.0,3456.0,2.89351]
[1721143832359,2.3502,3457.0,3456.2,2.89329]
[1721143832568,5.2429,3457.0,3455.9,2.89356]
[1721143832878,2.8928,3456.9,3456.0,0.822811]
[1721143833043,2.89285,3456.8,3455.9,2.89353]
[1721143833243,2.89294,3456.7,3455.3,2.265]
[1721143833443,2.3502,3457.0,3455.1,2.89419]
[1721143833444,2.89328,3456.3,3455.1,2.89424]
[1721143833741,5.2429,3457.0,3455.3,5.94705]
[1721143833742,1.20807727,3456.6,3455.3,5.94705]
[1721143833940,1.20807727,3456.6,3454.8,2.89451]
[1721143833941,2.89323,3456.4,3454.8,2.89451]
[1721143834142,2.89313,3456.5,3455.5,2.89393]
[1721143834343,1.20807727,3456.7,3455.6,2.3021]
[1721143834581,2.11337079,3457.5,3455.6,2.3021]
[1721143834582,1.20807727,3457.1,3456.5,2.89308]
[1721143834876,7.15564218,3457.6,3456.6,2.89301]
[1721143834877,4.10035727,3457.5,3456.6,2.89301]
[1721143835077,2.89228,3457.5,3456.6,2.89301]
[1721143835243,2.89228,3457.5,3456.7,0.578612]
[1721143835858,1.20807727,3457.7,3456.8,2.89282]
[1721143836055,1.20807727,3457.7,3456.9,2.89274]
[1721143836267,1.20807727,3458.0,3456.8,3.053]
[1721143836456,2.89174,3458.2,3457.3,2.89242]
[1721143836656,2.89159,3458.3,3457.4,2.89232]
[1721143836871,2.8917,3458.2,3457.4,2.89232]
[1721143837570,2.8917,3458.2,3457.3,0.289242]
[1721143837785,1.20807727,3458.4,3457.1,2.89253]
[1721143838106,2.89178,3458.1,3457.0,2.89267]
[1721143838459,2.89198,3457.9,3456.9,2.89276]
[1721143838668,2.89235,3457.4,3456.7,0.578612]
[1721143838862,2.89243,3457.3,3456.3,2.89326]
[1721143839201,6.59474727,3457.7,3456.0,2.4887]
[1721143839347,2.89285,3456.8,3455.9,2.8936]
[1721143840391,1.20807727,3457.2,3455.7,0.23021]
[1721143840392,1.20807727,3457.2,3456.0,2.89344]
[1721143840558,2.89278,3456.9,3455.8,2.89362]
[1721143840877,2.89269,3457.0,3455.9,0.850638]
[1721143841063,7.69801944,3457.4,3455.7,0.23021]
[1721143841064,2.89307,3456.6,3455.7,0.23021]
[1721143841265,2.89324,3456.4,3455.7,0.23021]
[1721143841693,1.20807727,3456.6,3455.7,0.23021]
[1721143841995,1.20807727,3456.6,3454.7,2.89454]
[1721143841996,2.89378,3455.7,3454.7,2.89454]
[1721143842182,4.50407727,3456.1,3454.6,2.2734]
[1721143842183,1.20807727,3456.0,3454.6,2.2734]
[1721143842497,1.20807727,3456.2,3455.2,5.78822]
[1721143842784,2.89335,3456.2,3455.3,3.472912]
[1721143842992,2.89344,3456.1,3455.3,0.578822]
[1721143843289,1.20807727,3456.3,3454.8,2.89451]
[1721143843290,2.89376,3455.8,3454.8,2.89451]
[1721143843592,2.894,3455.5,3454.0,2.89518]
[1721143843755,2.89427,3455.1,3454.1,2.89503]
[1721143843958,2.89427,3455.1,3454.0,5.94818]
[1721143843959,2.89427,3455.1,3454.2,2.89501]
[1721143844165,2.89427,3455.1,3454.3,0.884319]
[1721143844359,2.89436,3455.0,3453.9,2.3491]
[1721143844597,2.89448,3454.9,3453.9,2.3491]
[1721143844762,2.89452,3454.8,3453.9,2.89527]
[1721143845557,2.89436,3455.0,3453.9,5.94827]
[1721143845762,1.20807727,3455.4,3454.1,2.89505]
[1721143845763,2.89429,3455.1,3454.1,2.89505]
[1721143846004,2.89373,3455.8,3454.5,2.89476]
[1721143846005,3.53407727,3455.7,3454.5,2.89476]
[1721143846167,5.21979,3455.7,3454.5,2.89476]
[1721143846368,3.0,3456.5,3454.5,2.89476]
[1721143846369,1.20770872,3456.3,3455.8,2.89367]
[1721143846672,2.89291,3456.8,3455.6,2.89379]
[1721143846893,1.20770872,3457.0,3455.6,2.89379]
[1721143846894,4.10038872,3457.0,3455.8,2.89366]
[1721143847081,2.89278,3456.9,3455.9,0.578745]
[1721143847297,2.89286,3456.8,3455.9,3.472285]
[1721143848193,2.89303,3456.6,3455.9,0.578745]
[1721143848392,2.89311,3456.5,3455.3,3.053]
[1721143848593,2.89331,3456.3,3455.4,2.89398]